bitfinex/quotes_BTCUSD_20251226
["timestamp","ask_amount","ask_price","bid_price","bid_amount"]
[1766763731427,0.45358889,87050.0,87032.0,0.08481]
[1766763731428,0.01065648,87049.0,87032.0,0.08481]
[1766763731628,0.45358889,87050.0,87032.0,0.08481]
[1766763731629,0.4210482,87050.0,87032.0,0.08481]
[1766763731842,0.0106567,87049.0,87032.0,0.08481]
[1766763732018,0.4210482,87050.0,87032.0,0.08481]
[1766763732214,0.01065667,87049.0,87032.0,0.08481]
[1766763732400,0.4210482,87050.0,87034.0,0.07321]
[1766763732745,0.01148791,87048.0,87034.0,0.07321]
[1766763732880,0.000549,87034.0,87013.0,0.08168033]
[1766763733084,0.45352711,87040.0,87019.0,0.07321]
[1766763733523,0.01148883,87041.0,87019.0,0.07321]
[1766763733748,0.45352711,87030.0,87019.0,0.07321]
[1766763733947,0.45352711,87030.0,87020.0,0.02092803]
[1766763734341,0.45352711,87030.0,87020.0,0.00877903]
[1766763734521,0.45352711,87030.0,87021.0,0.0116]
[1766763735050,0.45352711,87030.0,87004.0,0.01149372]
[1766763735051,0.45352711,87031.0,87004.0,0.06981]
[1766763735225,0.4757838,87030.0,87013.0,0.01149253]
[1766763735560,0.0116,87036.0,87030.0,0.000549]
[1766763735759,0.0116,87036.0,87017.0,0.06981]
[1766763736975,0.45352711,87040.0,87022.0,0.06981]
[1766763737166,0.45352711,87040.0,87023.0,0.03143366]
[1766763737356,0.03514606,87039.0,87023.0,0.0116]
[1766763737563,0.000549,87023.0,87012.0,0.06981]
[1766763737766,0.000549,87023.0,87013.0,0.0116]
[1766763737968,0.01149095,87025.0,87004.0,0.00035865]
[1766763738150,0.000549,87013.0,87006.0,0.0116]
[1766763738350,0.000549,87013.0,87007.0,0.02058991]
[1766763738552,0.45352711,87023.0,87008.0,0.0116]
[1766763738870,0.06836,87027.0,87008.0,0.0116]
[1766763739189,0.2556683,87020.0,87007.0,0.02058991]
[1766763739350,0.2556683,87020.0,87008.0,0.0116]
[1766763739549,0.2556683,87020.0,87009.0,0.00907586]
[1766763739751,0.2556683,87020.0,87009.0,0.02067586]
[1766763739973,0.2556683,87020.0,87009.0,0.00907586]
[1766763740181,0.2556683,87020.0,87004.0,0.00035865]
[1766763740338,0.000549,87009.0,87007.0,0.0116]
[1766763740555,0.2556683,87020.0,87007.0,0.0116]
[1766763740996,0.2556683,87020.0,87004.0,0.00035865]
[1766763741412,0.06836,87019.0,87004.0,0.00035865]
[1766763741759,0.22980497,87031.0,87004.0,0.00035865]
[1766763741760,0.06836,87041.0,87019.0,0.00055]
[1766763741963,0.02223193,87039.0,87019.0,0.00055]
[1766763742202,0.01063193,87038.0,87020.0,0.007036]
[1766763742402,0.45352711,87030.0,87020.0,0.007036]
[1766763742578,0.4650174,87030.0,87005.0,0.19833659]
[1766763742777,0.4650174,87030.0,87005.0,0.06981]
[1766763743039,0.01149042,87029.0,87006.0,0.0116]
[1766763743214,0.05745211,87029.0,87007.0,0.0116]
[1766763743416,0.45352711,87020.0,87008.0,0.0116]
[1766763743714,0.45352711,87020.0,87005.0,0.06981]
[1766763743877,0.01149081,87026.0,87006.0,0.0116]
[1766763744077,0.07985068,87027.0,87006.0,0.0116]
[1766763744426,0.06836,87024.0,87006.0,0.0116]
[1766763744930,0.0116,87025.0,87006.0,0.08141]
[1766763745088,0.0116,87025.0,87007.0,0.00817687]
[1766763745678,0.0116,87025.0,87007.0,0.07798687]
[1766763746115,0.0116,87029.0,87007.0,0.00817687]
[1766763746321,0.0116,87029.0,87006.0,0.0116]
[1766763747293,0.0116,87033.0,87029.0,0.000549]
[1766763747549,0.0116,87037.0,87029.0,0.000549]
[1766763747854,0.0116,87038.0,87015.0,0.0116]
[1766763748188,0.06836,87037.0,87015.0,0.0116]
[1766763748520,0.06836,87037.0,87016.0,0.00575709]
[1766763748705,0.05836,87037.0,87015.0,0.0116]
[1766763749722,0.06836,87049.0,87017.0,0.12852659]
[1766763749929,0.01063222,87048.0,87017.0,0.12852659]
[1766763750126,0.01063222,87047.0,87017.0,0.12852659]
[1766763750327,0.01063222,87046.0,87018.0,0.01976187]
[1766763750525,0.06836,87044.0,87018.0,0.01976187]
[1766763750810,0.06836,87044.0,87018.0,0.03125374]
[1766763751011,0.06836,87044.0,87018.0,0.01976187]
[1766763751235,0.06836,87044.0,87019.0,0.01149174]
[1766763751434,0.06836,87044.0,87020.0,0.03208081]
[1766763752481,0.06836,87044.0,87018.0,0.01976187]
[1766763753036,0.06836,87044.0,87017.0,0.12852659]
[1766763753248,0.06836,87039.0,87005.0,0.01149359]
[1766763753585,0.06836,87039.0,87008.0,0.01149319]
[1766763753798,0.06836,87039.0,87011.0,0.01149279]
[1766763753993,0.06836,87039.0,87012.0,0.02299961]
[1766763754197,0.06836,87039.0,87013.0,0.12852659]
[1766763754401,0.06836,87039.0,87013.0,0.14001912]
[1766763754808,0.06836,87039.0,87015.0,0.01149227]
[1766763755013,0.06836,87039.0,87016.0,0.0116]
[1766763755177,0.06836,87039.0,87017.0,0.0720088]
[1766763756210,0.06836,87039.0,87018.0,0.0116]
[1766763756672,0.06836,87037.0,87018.0,0.00904745]
[1766763757059,0.06893274,87042.0,87018.0,0.00904745]
[1766763757060,0.06836,87029.0,87018.0,0.00904745]
[1766763757260,0.06836,87029.0,86999.0,0.14002097]
[1766763757261,0.06836,87029.0,86999.0,0.12852659]
[1766763757486,0.06836,87029.0,87007.0,0.046]
[1766763757709,0.06836,87029.0,87008.0,0.0116]
[1766763758214,0.06836,87029.0,87005.0,0.01403796]
[1766763758418,0.06836,87029.0,87006.0,0.0576]
[1766763758630,0.06836,87029.0,87005.0,0.01403796]
[1766763758631,0.07985042,87029.0,87007.0,0.0116]
[1766763758808,0.06836,87029.0,87008.0,0.00719966]
[1766763759150,0.06836,87029.0,87000.0,0.12852659]
[1766763759151,0.45352711,87020.0,87000.0,0.046]
[1766763759356,0.02449588,87029.0,87005.0,0.0116]
[1766763759357,0.06836,87019.0,87005.0,0.0116]
[1766763760636,0.06836,87005.0,87004.0,1e-08]
[1766763760806,0.06836,87005.0,86969.0,0.01149834]
[1766763760807,0.06836,87002.0,86979.0,0.0116]
[1766763761115,0.06836,87002.0,86980.0,0.0116]
[1766763761116,0.45352711,87000.0,86980.0,0.0116]
[1766763761312,0.45352711,87000.0,86981.0,0.12852659]
[1766763762282,0.06836,86999.0,86980.0,0.0116]
[1766763762890,0.45352711,86990.0,86980.0,0.0116]
[1766763763044,0.45297811,86990.0,86980.0,0.0116]
[1766763763825,0.06836,86999.0,86980.0,0.0116]
[1766763764067,0.45352711,87000.0,86980.0,0.0116]
[1766763764068,0.06984,87022.0,86999.0,0.00055]
[1766763764282,0.45352711,87020.0,86996.0,0.0116]
[1766763764411,0.06984,87019.0,86996.0,0.0116]
[1766763764617,0.45352711,87010.0,86996.0,0.03251004]
[1766763765055,0.01149319,87008.0,86991.0,0.0116]
[1766763765303,0.45352711,87000.0,86991.0,0.0116]
[1766763765523,0.45352711,87000.0,86988.0,0.0116]
[1766763765731,0.45352711,87000.0,86987.0,0.0116]
[1766763766337,0.06984,86999.0,86987.0,0.0116]
[1766763766754,0.06984,86999.0,86979.0,0.00010756]
[1766763766755,0.08133346,87006.0,86979.0,0.00010756]
[1766763766988,0.45352711,87000.0,86980.0,0.0116]
[1766763767447,0.29994448,87000.0,86980.0,0.0116]
[1766763767571,0.06984,87006.0,86987.0,0.12852659]
[1766763769008,0.06984,87006.0,86980.0,0.0116]
[1766763769338,0.06984,87006.0,86981.0,0.01636908]
[1766763770889,0.06984,87006.0,86987.0,0.12852659]
[1766763771931,0.06984,87006.0,86981.0,0.01636908]
[1766763772137,0.07167,87003.0,86980.0,0.0116]
[1766763773918,0.07167,87003.0,86980.0,0.02309689]
[1766763774106,0.0116,87013.0,87003.0,0.000549]
[1766763774458,0.0116,87013.0,86995.0,0.0116]
[1766763774617,0.0116,87013.0,86995.0,0.02885376]
[1766763775031,0.67752037,87020.0,86995.0,0.02885376]
[1766763775360,0.07167,87025.0,87002.0,0.01149398]
[1766763775508,0.07167,87025.0,87003.0,0.02309385]
[1766763775707,0.07167,87025.0,87005.0,0.01149359]
[1766763775911,0.0116,87032.0,87005.0,0.01149359]
[1766763776149,0.0116,87034.0,87004.0,0.04159809]
[1766763776324,0.0116,87034.0,87004.0,0.03010437]
[1766763776528,0.0116,87034.0,87004.0,0.04159809]
[1766763776731,0.0116,87034.0,87005.0,0.04001071]
[1766763776928,0.0116,87034.0,87005.0,0.02851712]
[1766763777170,0.01148989,87033.0,87003.0,0.0116]
[1766763777549,0.02308976,87034.0,87003.0,0.0116]
[1766763777744,0.01149002,87032.0,87003.0,0.0116]
[1766763778091,0.66592037,87030.0,87003.0,0.0116]
[1766763778295,0.07167,87038.0,87003.0,0.0116]
[1766763778296,0.07167,87047.0,87015.0,0.12852659]
[1766763778484,0.09491763,87059.0,87004.0,0.02320813]
[1766763778485,0.66592037,87040.0,87016.0,0.14012659]
[1766763778919,0.08315791,87048.0,87017.0,0.00059857]
[1766763779109,0.08315844,87044.0,87016.0,0.14012659]
[1766763779289,0.01148883,87041.0,87016.0,0.14012659]
[1766763779491,0.05744485,87040.0,87017.0,0.01861266]
[1766763779694,0.0114891,87039.0,87016.0,0.0116]
[1766763779900,0.01148936,87037.0,87017.0,0.12852659]
[1766763780065,0.01148949,87036.0,87017.0,0.12852659]
[1766763780266,0.07167,87027.0,87004.0,0.02320813]
[1766763780475,0.07167,87027.0,87005.0,0.0116]
[1766763780674,0.56648288,87030.0,87006.0,0.02093347]
[1766763780985,0.07167,87028.0,87006.0,0.02093347]
[1766763781170,0.07167,87019.0,87007.0,0.0116]
[1766763781619,0.07167,87019.0,86986.0,0.0114961]
[1766763781620,0.07167,87019.0,87002.0,0.0116]
[1766763782214,0.0116,87027.0,87019.0,0.000549]
[1766763782418,0.07167,87029.0,87019.0,0.000549]
[1766763782616,0.07167,87029.0,87011.0,0.0116]
[1766763783044,0.0116,87037.0,87011.0,0.0116]
[1766763783449,0.0116,87037.0,87011.0,0.02309279]
[1766763783649,0.07167,87038.0,87013.0,0.01149253]
[1766763783839,0.07167,87038.0,87012.0,0.02184703]
[1766763783840,0.07167,87038.0,87018.0,0.12852659]
[1766763784025,0.07167,87038.0,87012.0,0.01035437]
[1766763784026,0.07167,87037.0,87012.0,0.01035437]
[1766763784225,0.66592037,87030.0,87013.0,0.0116]
[1766763785432,0.07167,87031.0,87013.0,0.0116]
[1766763785632,0.07167,87031.0,87003.0,0.12852659]
[1766763785837,0.07167,87019.0,86988.0,0.01149583]
[1766763786040,0.0116,87030.0,87019.0,0.000549]
[1766763786244,0.07167,87036.0,87018.0,0.0116]
[1766763786823,0.01148963,87035.0,87014.0,0.0116]
[1766763787062,0.66592037,87030.0,87014.0,0.0116]
[1766763787443,0.07167,87029.0,87014.0,0.0116]
[1766763787649,0.07167,87029.0,87015.0,0.0116]
[1766763787865,0.01149055,87028.0,87014.0,0.0116]
[1766763788025,0.07167,87023.0,87014.0,0.0116]
[1766763788794,0.07167,87023.0,87011.0,0.0116]
[1766763789087,0.08316174,87019.0,86990.0,0.12852659]
[1766763789229,0.07167,87019.0,86995.0,0.046]
[1766763789633,0.07167,87019.0,86991.0,0.01149544]
[1766763789820,0.07167,87019.0,86996.0,0.0116]
[1766763790024,0.07167,87019.0,86997.0,0.0116]
[1766763790226,0.07167,87019.0,86998.0,0.01736]
[1766763790425,0.66592037,87010.0,86998.0,0.01736]
[1766763790628,0.66537137,87010.0,86998.0,0.01736]
[1766763790773,0.66537137,87010.0,86999.0,0.0116]
[1766763790973,0.07167,87019.0,87000.0,0.0116]
[1766763791224,0.07167,87019.0,86998.0,0.00576]
[1766763791427,0.07167,87019.0,87001.0,0.0116]
[1766763791658,0.66592037,87011.0,87001.0,0.0116]
[1766763791811,0.66592037,87011.0,86941.0,0.14395139]
[1766763791812,0.01149346,87006.0,86996.0,1e-08]
[1766763792137,0.07167,86997.0,86991.0,0.00030769]
[1766763792512,0.07167,86997.0,86983.0,0.0116]
[1766763792716,0.66592037,86993.0,86983.0,0.0116]
[1766763792894,0.0114961,86986.0,86958.0,0.12852659]
[1766763793099,0.07167,86992.0,86959.0,0.02435233]
[1766763793348,0.59092037,86980.0,86959.0,0.01285266]
[1766763793494,0.07167,86992.0,86962.0,0.01149927]
[1766763793696,0.66592037,86990.0,86960.0,0.0576]
[1766763793981,0.66592037,86990.0,86959.0,0.01285266]
[1766763793982,0.01149583,86988.0,86959.0,0.01285266]
[1766763794168,0.66592037,86980.0,86960.0,0.0199956]
[1766763794315,0.66592037,86980.0,86960.0,0.01170756]
[1766763794859,0.66592037,86980.0,86960.0,0.00010756]
[1766763795005,0.66592037,86980.0,86961.0,0.0116]
[1766763795212,0.66592037,86980.0,86960.0,0.00010756]
[1766763795413,0.66592037,86970.0,86961.0,0.0116]
[1766763795693,0.66592037,86970.0,86960.0,0.00010756]
[1766763795898,0.66592037,86951.0,86948.0,0.046]
[1766763796179,0.59092037,86958.0,86948.0,6.178e-05]
[1766763796331,0.06789,86957.0,86948.0,6.178e-05]
[1766763797140,0.59092037,86958.0,86948.0,6.178e-05]
[1766763798282,0.06789,86966.0,86948.0,6.178e-05]
[1766763798485,0.0116,86965.0,86948.0,6.178e-05]
[1766763798685,0.0116,86965.0,86949.0,0.00690723]
[1766763799053,0.0116,86965.0,86948.0,6.178e-05]
[1766763799749,0.66592037,86960.0,86948.0,6.178e-05]
[1766763799921,0.0114998,86958.0,86948.0,6.178e-05]
[1766763800154,0.06789,86957.0,86948.0,6.178e-05]
[1766763800440,0.06789,86954.0,86948.0,6.178e-05]
[1766763800611,0.06789,86954.0,86938.0,0.22447998]
[1766763800612,0.07939046,86953.0,86938.0,0.22447998]
[1766763800812,0.05750172,86954.0,86938.0,0.08562221]
[1766763800813,0.59092037,86950.0,86938.0,0.08562221]
[1766763800994,0.06789,86949.0,86938.0,0.08562221]
[1766763804568,0.60256037,86950.0,86938.0,0.08562221]
[1766763804569,0.01164,86950.0,86949.0,0.000549]
[1766763804984,0.01164,86950.0,86938.0,0.08562221]
[1766763805706,0.66592037,86950.0,86938.0,0.08562221]
[1766763805909,0.01164,86954.0,86950.0,0.000549]
[1766763806087,0.06789,86957.0,86938.0,0.08562221]
[1766763806290,0.66592037,86950.0,86938.0,0.08562221]
[1766763808131,0.66537137,86950.0,86938.0,0.08562221]
[1766763808677,0.66592037,86950.0,86938.0,0.08562221]
[1766763808932,0.01164,86955.0,86938.0,0.08562221]
[1766763809342,0.66592037,86950.0,86938.0,0.08562221]
[1766763809822,0.06789,86968.0,86950.0,0.00055]
[1766763809987,0.66592037,86970.0,86956.0,0.01150006]
[1766763810191,0.66592037,86970.0,86956.0,0.01164]
[1766763810393,0.6642371,86980.0,86960.0,0.12852659]
[1766763810573,0.66592037,86980.0,86961.0,0.01516667]
[1766763810779,0.06789,86979.0,86961.0,0.01516667]
[1766763810978,0.66592037,86971.0,86956.0,0.01164]
[1766763811244,0.01149861,86967.0,86935.0,0.45197314]
[1766763811419,0.000549,86956.0,86946.0,0.12852659]
[1766763811622,0.66592037,86970.0,86950.0,0.01150086]
[1766763811764,0.01164,86976.0,86951.0,0.02091731]
[1766763811965,0.01164,86975.0,86951.0,0.02091731]
[1766763812167,0.07953,86975.0,86951.0,0.02091731]
[1766763812586,0.06789,86989.0,86960.0,0.12852659]
[1766763812785,0.66592037,86980.0,86961.0,0.01164]
[1766763812983,0.06789,86979.0,86961.0,0.01164]
[1766763813212,0.66592037,86971.0,86961.0,0.01164]
[1766763813545,0.06789,86976.0,86961.0,0.01164]
[1766763813945,0.67756037,86980.0,86961.0,0.01164]
[1766763814148,0.01149504,86994.0,86961.0,0.01164]
[1766763814149,0.06789,86999.0,86980.0,0.00055]
[1766763814375,0.06789,87009.0,86985.0,0.01149623]
[1766763814581,0.06789,87009.0,86986.0,0.05748051]
[1766763814712,0.06789,87019.0,86999.0,0.01149438]
[1766763814925,0.66592037,87020.0,87000.0,0.01164]
[1766763815116,0.66592037,87010.0,87000.0,0.01164]
[1766763815516,0.66592037,87010.0,86984.0,0.01149636]
[1766763815517,0.06789,87008.0,86981.0,0.12852659]
[1766763815834,0.06789,87008.0,86982.0,0.01164]
[1766763816218,0.66592037,87000.0,86981.0,0.12863428]
[1766763816410,0.06789,86997.0,86983.0,0.01164]
[1766763816621,0.59092037,86991.0,86983.0,0.00908745]
[1766763816820,0.65881037,86991.0,86983.0,0.00908745]
[1766763817096,0.067341,86990.0,86979.0,0.01164]
[1766763817398,0.73381037,87000.0,86990.0,0.00044247]
[1766763817598,0.06789,87000.0,86990.0,0.00044247]
[1766763817761,0.06789,87000.0,86980.0,0.13429059]
[1766763817957,0.73381037,87000.0,86980.0,0.13439812]
[1766763818548,0.73381037,87000.0,86989.0,0.0114957]
[1766763818797,0.66592037,87010.0,87000.0,0.000442]
[1766763819185,0.66592037,87010.0,87001.0,0.01406086]
[1766763819435,0.06789,87023.0,87003.0,0.05746896]
[1766763819436,0.66592037,87020.0,87003.0,0.05746896]
[1766763819624,0.06789,87023.0,87004.0,0.01149372]
[1766763819808,0.01164,87021.0,87001.0,0.01406086]
[1766763820068,0.01164,87021.0,87002.0,0.00601847]
[1766763820212,0.0116,87029.0,87002.0,0.00601847]
[1766763820414,0.07937989,87033.0,87009.0,0.01149306]
[1766763820415,0.06789,87033.0,87009.0,0.01149306]
[1766763820755,0.66592037,87040.0,87009.0,0.01149306]
[1766763820756,0.0116,87037.0,87010.0,0.02309293]
[1766763820902,0.0116,87037.0,87011.0,0.0232071]
[1766763821096,0.07949,87037.0,87011.0,0.0232071]
[1766763821505,0.07949,87037.0,87001.0,0.08302545]
[1766763821506,0.06789,87029.0,87001.0,0.01406086]
[1766763821708,0.06789,87029.0,87003.0,0.0116]
[1766763822572,0.06789,87029.0,87003.0,0.02309385]
[1766763822773,0.06789,87029.0,87003.0,0.0116]
[1766763823735,0.06789,87029.0,87007.0,0.00026568]
[1766763824637,0.66592037,87020.0,87008.0,0.0116]
[1766763824768,0.66592037,87020.0,87008.0,0.011493]
[1766763825196,0.07243,87019.0,87008.0,0.00925263]
[1766763825620,0.07243,87019.0,87007.0,0.00026568]
[1766763825621,0.07243,87019.0,87005.0,0.0116]
[1766763825752,0.07243,87017.0,87005.0,0.0116]
[1766763825961,0.07243,87015.0,86982.0,0.01149663]
[1766763826162,0.66592037,87010.0,86986.0,0.0114961]
[1766763826408,0.07243,87009.0,86987.0,0.0116]
[1766763827072,0.0116,87016.0,86966.0,0.1487]
[1766763827301,0.07243,86999.0,86983.0,0.12852659]
[1766763827480,0.07243,86999.0,86984.0,0.0116]
[1766763827934,0.07243,86993.0,86985.0,0.12852659]
[1766763828167,0.07243,87004.0,86986.0,0.01401266]
[1766763828437,0.0116,87009.0,86986.0,0.12852659]
[1766763829043,0.08392319,87008.0,86986.0,0.12852659]
[1766763829586,0.07243,87008.0,86986.0,0.12852659]
[1766763830338,0.01149319,87008.0,86986.0,0.12852659]
[1766763830516,0.08392332,87007.0,86984.0,0.0116]
[1766763830727,0.66592037,87000.0,86984.0,0.0116]
[1766763831087,0.07243,86999.0,86984.0,0.0116]
[1766763832490,0.01149293,87010.0,86984.0,0.0116]
[1766763832491,0.07243,87011.0,86999.0,0.000549]
[1766763832746,0.08403,87011.0,86999.0,0.000549]
[1766763832864,0.08403,87011.0,86994.0,0.0116]
[1766763833063,0.08403,87011.0,87000.0,6e-05]
[1766763833316,0.07243,87011.0,87000.0,6e-05]
[1766763833724,0.45409509,87010.0,87000.0,6e-05]
[1766763836381,0.07243,87009.0,87000.0,6e-05]
[1766763838059,0.07243,87009.0,86973.0,0.06898642]
[1766763838262,0.01195894,87016.0,86978.0,0.04737111]
[1766763838263,0.52652509,87000.0,86978.0,0.04737111]
[1766763838693,0.07243,86999.0,86978.0,0.04737111]
[1766763840244,0.0116,87006.0,86999.0,0.000549]
[1766763840446,0.07243,87015.0,87006.0,0.00055]
[1766763840699,0.07243,87015.0,87001.0,0.01149412]
[1766763840905,0.07243,87015.0,86964.0,0.1487]
[1766763840906,0.07243,87038.0,87014.0,0.0114924]
[1766763841102,0.0106331,87037.0,87015.0,0.0116]
[1766763841331,0.08413766,87038.0,87015.0,0.0116]
[1766763841332,0.45409509,87030.0,87015.0,0.0116]
[1766763841536,0.08413766,87038.0,86977.0,0.21109894]
[1766763841537,0.45409509,87025.0,86995.0,0.01149491]
[1766763841826,0.01149015,87031.0,87003.0,0.0116]
[1766763841827,0.45409509,87020.0,87003.0,0.0116]
[1766763843303,0.07243,87024.0,87003.0,0.0116]
[1766763843505,0.07243,87024.0,87005.0,0.12852659]
[1766763843873,0.45409509,87030.0,87005.0,0.12852659]
[1766763844070,0.07243,87029.0,87003.0,0.0116]
[1766763844283,0.07243,87019.0,87004.0,0.0116]
[1766763844548,0.45409509,87013.0,86989.0,0.046]
[1766763844686,0.52652509,87013.0,86993.0,0.12852659]
[1766763845238,0.52652509,87013.0,86990.0,0.0116]
[1766763845402,0.52652509,87013.0,86991.0,0.0116]
[1766763845403,0.07243,87012.0,86991.0,0.0116]
[1766763845603,0.07243,87012.0,86992.0,0.14012659]
[1766763845802,0.52652509,87010.0,86993.0,0.0116]
[1766763846514,0.07243,87010.0,86993.0,0.0116]
[1766763846727,0.07243,87009.0,86993.0,0.0116]
[1766763846928,0.07247534,87009.0,86993.0,0.0116]
[1766763847320,4.534e-05,87009.0,86993.0,0.0116]
[1766763847520,0.07243,87009.0,86993.0,0.0116]
[1766763847955,0.01149425,87000.0,86977.0,0.12852659]
[1766763848158,0.07243,87001.0,86979.0,0.0116]
[1766763848537,0.45409509,86990.0,86979.0,0.0116]
[1766763848854,0.45409509,86990.0,86978.0,0.00035894]
[1766763849054,0.45409509,86990.0,86979.0,0.0116]
[1766763849636,0.37909509,86990.0,86979.0,0.0116]
[1766763849909,0.08403,87000.0,86990.0,0.000549]
[1766763850179,0.07243,86996.0,86990.0,0.000549]
[1766763850375,0.07243,86996.0,86983.0,0.0116]
[1766763851281,0.45409509,86993.0,86983.0,0.0116]
[1766763853246,0.0116,87000.0,86983.0,0.0116]
[1766763853247,0.07243,87005.0,86993.0,0.001099]
[1766763853671,0.45409509,87010.0,86993.0,0.012699]
[1766763853846,0.45409509,87010.0,86993.0,0.0116]
[1766763854059,0.12680188,87000.0,86978.0,0.00035894]
[1766763854244,0.02309359,87005.0,86980.0,0.12852659]
[1766763854452,0.15409509,86990.0,86980.0,0.12852659]
[1766763854700,0.0116,87005.0,86990.0,0.000549]
[1766763854925,0.45409509,87010.0,86995.0,0.12852659]
[1766763855119,0.45409509,87010.0,86996.0,0.01290756]
[1766763855324,0.45409509,87010.0,86988.0,0.0116]
[1766763856288,0.06933,87011.0,86988.0,0.0116]
[1766763856507,0.45409509,87010.0,86988.0,0.0116]
[1766763856804,0.52342509,87010.0,86988.0,0.0116]
[1766763857001,0.52342509,87010.0,86989.0,0.01150664]
[1766763857400,0.0116,87019.0,87010.0,0.000549]
[1766763857618,0.01009934,87018.0,87013.0,0.12852659]
[1766763857817,0.06933,87025.0,87014.0,0.01974827]
[1766763858672,0.06933,87025.0,87006.0,0.0116]
[1766763858840,0.06933,87025.0,87012.0,0.12852659]
[1766763860022,0.06933,87025.0,87006.0,0.0116]
[1766763860251,0.06933,87025.0,87011.0,0.12852659]
[1766763860854,0.0116,87033.0,87011.0,0.12852659]
[1766763861062,0.01170761,87033.0,87012.0,0.01401266]
[1766763861318,0.0231975,87033.0,87012.0,0.01401266]
[1766763861603,0.0231975,87033.0,87011.0,0.12852659]
[1766763861604,0.01149029,87030.0,87011.0,0.12852659]
[1766763861816,0.01149147,87021.0,86990.0,0.45409509]
[1766763861962,0.00055,87011.0,86998.0,0.046]
[1766763862164,0.01149134,87022.0,86998.0,0.046]
[1766763862357,0.01149121,87023.0,86999.0,0.01861266]
[1766763862600,0.01149095,87025.0,86999.0,0.01861266]
[1766763862809,0.06894522,87026.0,86999.0,0.01861266]
[1766763862810,0.01149121,87023.0,86999.0,0.01861266]
[1766763862956,0.06894774,87023.0,86999.0,0.01861266]
[1766763863157,0.01149121,87023.0,86999.0,0.01861266]
[1766763863357,0.01149121,87023.0,87000.0,0.02047392]
[1766763863712,0.01149147,87021.0,87001.0,0.0116]
[1766763863871,0.01149121,87023.0,87001.0,0.0116]
[1766763864080,0.08093,87025.0,87001.0,0.0116]
[1766763864081,0.06933,87024.0,87001.0,0.0116]
[1766763864462,0.06943761,87033.0,87024.0,0.000549]
[1766763864719,0.08103761,87033.0,87024.0,0.000549]
[1766763865018,0.08103761,87033.0,87015.0,0.0116]
[1766763865235,0.08103761,87033.0,87016.0,0.01401266]
[1766763865599,0.08082002,87032.0,87016.0,0.01401266]
[1766763865815,0.01149015,87031.0,87016.0,0.01401266]
[1766763866325,0.00055,87016.0,87000.0,0.02047392]
[1766763866639,0.06933,87016.0,87001.0,0.0116]
[1766763866784,0.06933,87016.0,87002.0,0.0116]
[1766763868421,0.06933,87016.0,86994.0,0.17452659]
[1766763868422,0.06933,87016.0,87003.0,0.0116]
[1766763870138,0.45409509,87013.0,87003.0,0.0116]
[1766763870906,0.06933,87016.0,87003.0,0.0116]
[1766763871426,0.06933,87025.0,87016.0,0.000549]
[1766763871574,0.06933,87025.0,87003.0,0.0116]
[1766763871997,0.06933,87021.0,86989.0,0.02300234]
[1766763872164,0.06933,87014.0,86996.0,0.12852659]
[1766763873364,0.00055,86996.0,86991.0,0.0116]
[1766763873741,0.45409509,87001.0,86991.0,0.0116]
[1766763873993,0.45409509,87001.0,86990.0,0.0116]
[1766763873994,0.06933,87000.0,86990.0,0.0116]
[1766763874610,0.06933,87000.0,86990.0,0.01140894]
[1766763874815,0.52342509,87000.0,86990.0,0.01140894]
[1766763875964,0.06933,86999.0,86990.0,0.01140894]
[1766763877003,0.06933,86999.0,86990.0,0.00035894]
[1766763878148,0.06628396,86999.0,86990.0,0.00035894]
[1766763879001,0.01149478,86996.0,86990.0,0.00035894]
[1766763879209,0.45409509,87000.0,86962.0,0.12852659]
[1766763879210,0.06933,86989.0,86962.0,0.12852659]
[1766763879411,0.45409509,87000.0,86976.0,0.12852659]
[1766763879750,0.0116,86999.0,86976.0,0.12852659]
[1766763879985,0.08093,86999.0,86976.0,0.12852659]
[1766763880266,0.08093,86999.0,86977.0,0.01400247]
[1766763880689,0.45409509,86990.0,86977.0,0.01400247]
[1766763881312,0.06933,87011.0,86990.0,0.00055]
[1766763881543,0.45409509,87000.0,86990.0,0.00055]
[1766763881709,0.45409509,87000.0,86978.0,0.0116]
[1766763881912,0.45409509,87000.0,86979.0,0.02231156]
[1766763882477,0.45409509,87000.0,86979.0,0.0223569]
[1766763884801,0.01149346,87006.0,86979.0,0.0223569]
[1766763884802,0.03059681,87024.0,87000.0,0.00055]
[1766763885004,0.06802,87019.0,87000.0,0.00055]
[1766763885170,0.06802,87019.0,86998.0,0.0116]
[1766763885171,0.45409509,87010.0,86998.0,0.0116]
[1766763885587,0.07962,87019.0,86999.0,0.00920634]
[1766763886048,0.45409509,87020.0,87005.0,0.12852659]
[1766763886414,0.45409509,87030.0,87020.0,0.00055]
[1766763886747,0.45409509,87040.0,87020.0,0.00055]
[1766763886930,0.45409509,87040.0,87021.0,0.01521687]
[1766763887296,0.06802,87040.0,87021.0,0.01521687]
[1766763887491,0.45409509,87040.0,87021.0,0.01521687]
[1766763887731,0.454454,87040.0,87022.0,0.0116]
[1766763887931,0.522474,87040.0,87023.0,0.01553435]
[1766763888330,0.53396297,87040.0,87023.0,0.01553435]
[1766763888527,0.000549,87023.0,87020.0,0.0116]
[1766763888728,0.000549,87023.0,87019.0,0.0116]
[1766763888932,0.0116,87039.0,87020.0,0.12852659]
[1766763889110,0.454454,87040.0,87020.0,0.12852659]
[1766763889542,0.06802,87039.0,87020.0,0.12852659]
[1766763889734,0.45409509,87030.0,87021.0,0.01401266]
[1766763890554,0.45409509,87030.0,87019.0,0.0116]
[1766763890876,0.45409509,87030.0,87020.0,0.12772521]
[1766763891059,0.45354509,87030.0,87020.0,0.12772521]
[1766763891627,0.00035891,87040.0,87028.0,0.01149055]
[1766763891829,0.06802,87072.0,87039.0,0.0114891]
[1766763892032,0.06802,87072.0,87042.0,0.0114887]
[1766763892033,0.45409509,87060.0,87042.0,0.0114887]
[1766763892243,0.45409509,87052.0,87040.0,0.02560157]
[1766763892893,0.06802,87050.0,87040.0,0.01400157]
[1766763893033,0.06802,87050.0,87035.0,0.0116]
[1766763893034,0.000549,87040.0,87035.0,0.0116]
[1766763893241,0.06802,87058.0,87036.0,0.12852659]
[1766763893437,0.45409509,87050.0,87035.0,0.0116]
[1766763893634,0.45409509,87050.0,87037.0,0.12852659]
[1766763893861,0.45409509,87050.0,87038.0,0.01516167]
[1766763894028,0.06802,87056.0,87038.0,0.01516167]